[Event "Magistral Ajedrez 2019"]
[Site "Zaragoza"]
[Date "2019.07.18"]
[Round "5.1"]
[White "Llorente Zaro, Alfonso"]
[Black "Romero Pallares, Daniel"]
[Result "1-0"]
[ECO "A45"]
[WhiteElo "2445"]
[BlackElo "2230"]
[Annotator "RC"]
[PlyCount "125"]
[EventDate "2019.07.15"]
[EventType "swiss"]
[EventCountry "ESP"]
[SourceTitle "playchess.com"]
[Source "ChessBase"]
[SourceQuality "1"]
[TimeControl "5400+30"]

1. d4 {[%emt 0:00:00]} Nf6 {[%emt 0:00:00]} 2. g3 {[%emt 0:00:00]} g6 {[%emt 0:02:39]} 3. Bg2 {[%emt 0:00:00]} Bg7 {[%emt 0:00:04]} 4. Nf3 {[%emt 0:01:05]} O-O {[%emt 0:00:07]} 5. O-O {[%emt 0:00:05]} d6 {[%emt 0:01:09]} 6. a4 {[%emt 0:00:35]} Nbd7 {[%emt 0:02:03]} 7. a5 {[%emt 0:00:29]} c6 {[%emt 0:00:29]} 8. Nc3 {[%emt 0:02:05]} Qc7 {[%emt 0:02:06]} 9. e4 {[%emt 0:05:45]} e5 {[%emt 0:05:45]} 10. b3 {[%emt 0:04:10]} Re8 {[%emt 0:09:54]} 11. h3 {[%emt 0:22:08]} exd4 {[%emt 0:21:57]} 12. Nxd4 {[%emt 0:00:23]} Nc5 {[%emt 0:00:50]} 13. Re1 {[%emt 0:02:01]} Ne6 {[%emt 0:17:53]} 14. Be3 {[%emt 0:25:37]} Bd7 {[%emt 0:00:42]} 15. Qd2 {[%emt 0:00:53]} b5 {[%emt 0:09:46]} 16. axb6 {[%emt 0:01:38]} axb6 17. Nxe6 {[%emt 0:04:09]} Bxe6 {[%emt 0:03:37]} 18. Rxa8 {[%emt 0:02:47]} Rxa8 {[%emt 0:00:07]} 19. Rd1 {[%emt 0:00:33]} Rd8 20. Na4 {[%emt 0:01:05]} c5 {[%emt 0:06:21]} 21. Nc3 {[%emt 0:02:18]} Qd7 {[%emt 0:04:49]} 22. Kh2 {[%emt 0:00:18]} b5 {[%emt 0:01:00]} 23. Bg5 {[%emt 0:00:51]} b4 {[%emt 0:08:21]} 24. Na4 {[%emt 0:04:16]} Re8 {[%emt 0:00:30]} 25. Qxd6 {[%emt 0:00:30]} Qxd6 {[%emt 0:00:30]} 26. Rxd6 {[%emt 0:00:30]} Nd7 {[%emt 0:00:40]} 27. Be3 {[%emt 0:01:39]} Rc8 {[%emt 0:00:30]} 28. Bf1 {[%emt 0:00:30]} Bd4 {[%emt 0:00:30]} 29. Ba6 {[%emt 0:00:30]} Rc7 {[%emt 0:00:30]} 30. Bf4 {[%emt 0:00:30]} Ra7 {[%emt 0:00:30]} 31. Kg2 {[%emt 0:00:30]} Kf8 {[%emt 0:00:30]} 32. Bb5 {[%emt 0:00:30]} Ke7 {[%emt 0:00:30]} 33. Rc6 {[%emt 0:00:30]} f6 {[%emt 0:00:30]} 34. Bd6+ {[%emt 0:00:30]} Kf7 {[%emt 0:00:30]} 35. Nxc5 {[%emt 0:00:30]} Nxc5 {[%emt 0:00:30]} 36. Bxc5 {[%emt 0:00:30]} Bxc5 {[%emt 0:00:30]} 37. Rxc5 {[%emt 0:00:30]} Ke7 {[%emt 0:00:30]} 38. Bd3 {[%emt 0:00:30]} Rd7 {[%emt 0:00:30]} 39. Bc4 {[%emt 0:00:30]} Rd2 {[%emt 0:00:30]} 40. Bxe6 {[%emt 0:00:30]} Kxe6 {[%emt 0:00:30]} 41. Kf3 {[%emt 0:00:30]} Rd1 {[%emt 0:00:30]} 42. Ke2 {[%emt 0:00:30]} Rc1 {[%emt 0:00:30]} 43. f4 {[%emt 0:00:30]} Rh1 {[%emt 0:00:30]} 44. Kf3 {[%emt 0:00:30]} Rf1+ {[%emt 0:00:30]} 45. Kg2 {[%emt 0:00:30]} Rc1 {[%emt 0:00:30]} 46. Rc6+ {[%emt 0:00:30]} Ke7 {[%emt 0:00:30]} 47. Rc4 {[%emt 0:00:30]} Kd6 {[%emt 0:00:30]} 48. g4 {[%emt 0:00:30]} g5 {[%emt 0:00:30]} 49. e5+ {[%emt 0:00:30]} fxe5 {[%emt 0:00:30]} 50. fxg5 {[%emt 0:00:30]} Kd5 {[%emt 0:00:30]} 51. h4 {[%emt 0:00:30]} e4 {[%emt 0:00:30]} 52. h5 {[%emt 0:00:30]} Ke5 {[%emt 0:00:30]} 53. g6 {[%emt 0:00:30]} hxg6 {[%emt 0:00:30]} 54. hxg6 {[%emt 0:00:30]} Rd1 {[%emt 0:00:30]} 55. g7 {[%emt 0:00:30]} Rd8 {[%emt 0:00:30]} 56. Kg3 {[%emt 0:00:30]} Rg8 {[%emt 0:00:30]} 57. Rc7 {[%emt 0:00:30]} Kd6 {[%emt 0:00:30]} 58. Rb7 {[%emt 0:00:30]} Ke5 {[%emt 0:00:30]} 59. Rb5+ {[%emt 0:00:30]} Kd4 {[%emt 0:00:30]} 60. Rxb4+ {[%emt 0:00:30]} Ke3 {[%emt 0:00:30]} 61. Rb7 {[%emt 0:00:30]} Re8 {[%emt 0:00:30]} 62. Rf7 {[%emt 0:00:30]} Rg8 {[%emt 0:00:30]} 63. Re7 {[%emt 0:00:30]} 1-0

[Event "Magistral Ajedrez 2019"]
[Site "Zaragoza"]
[Date "2019.07.18"]
[Round "5.3"]
[White "Villuendas Valero, Adrian"]
[Black "Kovacevic, Slobodan"]
[Result "1-0"]
[ECO "A61"]
[WhiteElo "2250"]
[BlackElo "2257"]
[Annotator "NA"]
[PlyCount "159"]
[EventDate "2019.07.15"]
[EventType "swiss"]
[EventCountry "ESP"]
[SourceTitle "playchess.com"]
[Source "ChessBase"]
[SourceQuality "1"]
[TimeControl "5400+30"]

1. d4 {[%emt 0:00:00]} Nf6 {[%emt 0:00:25]} 2. c4 {[%emt 0:00:00]} e6 {[%emt 0:00:35]} 3. Nc3 {[%emt 0:00:45]} c5 {[%emt 0:01:03]} 4. d5 {[%emt 0:00:12]} exd5 {[%emt 0:00:06]} 5. cxd5 {[%emt 0:00:12]} d6 {[%emt 0:01:04]} 6. Nf3 {[%emt 0:00:27]} g6 {[%emt 0:00:53]} 7. Qa4+ {[%emt 0:01:10] A61: Modern Benoni: Nf3 without early e4} (7. Bf4 Bg7 8. h3 O-O 9. e3 Na6 10. Bc4 Nc7 11. O-O Re8 12. a4 b6 13. Nb5 Nxb5 14. axb5 Ne4 15. Ra2 g5 {½-½ (39) Vallejo Pons,F (2698)-Lagarde,M (2604) chess.com INT 2019}) 7... Bd7 {[%emt 0:05:34]} 8. Qb3 {[%emt 0:00:13]} Bc8 {[%emt 0:01:59]} 9. e4 {[%emt 0:11:23]} a6 {[%emt 0:04:31]} 10. a4 {[%emt 0:01:23]} Qa5 $146 {[%emt 0:04:07]} ({Predecessor:} 10... Bg7 11. Bd3 O-O 12. O-O Nbd7 13. Bf4 Qc7 14. h3 Re8 15. Rfe1 Nh5 16. Bh2 Ne5 17. Be2 Nxf3+ 18. Bxf3 Nf6 19. Qc2 Nd7 20. Be2 Be5 {½-½ (20) Li,R (2423)-Le,T (2328) Tagaytay City 2011}) 11. Bd2 {[%emt 0:06:34]} Nbd7 {[%emt 0:03:22]} 12. Ra3 {[%emt 0:13:51]} Rb8 {[%emt 0:06:29]} 13. Be2 {[%emt 0:10:26]} Qc7 {[%emt 0:03:41]} 14. O-O {[%emt 0:01:56]} Bg7 {[%emt 0:00:51]} 15. h3 {[%emt 0:07:40]} O-O {[%emt 0:13:00]} 16. Re1 {[%emt 0:02:35]} Re8 {[%emt 0:08:15]} 17. Bf1 {[%emt 0:01:03]} Nh5 {[%emt 0:12:19]} 18. g4 {[%emt 0:07:05]} Nhf6 {[%emt 0:00:25]} 19. Bf4 {[%emt 0:01:22]} h5 {[%emt 0:00:23]} 20. g5 {[%emt 0:03:20]} Nh7 {[%emt 0:00:55]} 21. Nd2 {[%emt 0:12:38]} Bd4 {[%emt 0:04:24]} 22. Nf3 {[%emt 0:05:16]} Bg7 {[%emt 0:06:42]} 23. Qd1 {[%emt 0:04:03]} c4 {[%emt 0:04:18]} 24. b4 {[%emt 0:06:33]} Bf8 {[%emt 0:07:12]} (24... Ne5 $11) 25. Qd2 {[%emt 0:01:09]} (25. a5 $16) 25... Ne5 {[%emt 0:00:08]} 26. Nd4 {[%emt 0:00:32]} Bg7 {[%emt 0:00:56]} 27. Be3 {[%emt 0:00:34]} Nd3 {[%emt 0:04:20] Double Attack} 28. Rb1 {[%emt 0:01:31]} Bd7 {[%emt 0:00:37]} 29. h4 {[%emt 0:00:36]} Ne5 {[%emt 0:00:14]} 30. f3 {[%emt 0:00:19]} Rbc8 {[%emt 0:01:41]} 31. Be2 {[%emt 0:00:22]} Qd8 {[%emt 0:00:28]} 32. Nd1 {[%emt 0:00:38]} ({White should try} 32. a5 $14) 32... Qe7 {[%emt 0:00:39]} 33. Nf2 {[%emt 0:00:23]} Kh8 {[%emt 0:01:13]} 34. Rc1 {[%emt 0:00:40]} b5 {[%emt 0:01:56]} ({Black should try} 34... f5 $14) 35. axb5 {[%emt 0:00:28]} axb5 {[%emt 0:00:14]} 36. Nd1 {[%emt 0:00:19]} Rb8 {[%emt 0:00:25]} 37. Nc3 {[%emt 0:00:13]} Rb7 {[%emt 0:00:01]} 38. Rca1 {[%emt 0:00:11]} Reb8 $18 {[%emt 0:00:57]} (38... Rc8 {might work better.} 39. Ra8 Qf8) 39. Ra6 {[%emt 0:01:07]} (39. f4 $142) 39... Rc8 {[%emt 0:01:42]} (39... Kg8 $16 40. R1a5 Qe8) 40. Ra7 {[%emt 0:00:23]} Rxa7 {[%emt 0:00:30]} 41. Rxa7 {[%emt 0:00:07]} Qe8 {[%emt 0:00:02]} 42. Ra5 {[%emt 0:01:11]} Rb8 {[%emt 0:00:07]} 43. Ra6 {[%emt 0:00:29]} Bf8 {[%emt 0:00:14]} 44. Nc2 {[%emt 0:00:39]} Ra8 {[%emt 0:00:52]} 45. Rxa8 {[%emt 0:00:18]} Qxa8 {[%emt 0:00:01]} 46. Bd4 {[%emt 0:00:15]} Kg8 {[%emt 0:00:10]} 47. f4 {[%emt 0:00:44]} Ng4 {[%emt 0:00:14]} 48. Bf3 {[%emt 0:00:31]} Qb8 {[%emt 0:00:34]} 49. Qe2 {[%emt 0:00:18]} Be7 {[%emt 0:00:32]} 50. e5 {[%emt 0:00:49]} Bf5 {[%emt 0:00:26]} 51. Be4 {[%emt 0:00:27]} Bd7 {[%emt 0:01:57]} 52. e6 {[%emt 0:00:33]} Be8 {[%emt 0:00:18]} 53. f5 {[%emt 0:00:13]} gxf5 {[%emt 0:00:51]} 54. Bxf5 {[%emt 0:00:15]} Ne5 {[%emt 0:00:17]} 55. Qxh5 {[%emt 0:01:03]} Nf8 {[%emt 0:00:00]} 56. Qe2 {[%emt 0:00:37]} fxe6 {[%emt 0:00:41]} 57. dxe6 {[%emt 0:00:06]} Bc6 {[%emt 0:00:09]} 58. Be4 {[%emt 0:00:34]} Qa8 {[%emt 0:00:28]} 59. Bxc6 {[%emt 0:00:50]} Qxc6 {[%emt 0:00:11]} 60. Bxe5 {[%emt 0:00:31]} dxe5 {[%emt 0:00:03]} 61. Qe4 {[%emt 0:00:20]} Qb6+ {[%emt 0:00:41]} 62. Kf1 {[%emt 0:00:27]} Qxe6 {[%emt 0:00:21]} 63. Qd5 {[%emt 0:00:24]} Qxd5 {[%emt 0:02:36]} 64. Nxd5 {[%emt 0:00:06]} Bd8 {[%emt 0:00:02]} 65. Kf2 {[%emt 0:00:33]} Kf7 {[%emt 0:00:07]} 66. Kf3 {[%emt 0:00:30]} Ke6 {[%emt 0:00:51]} 67. Nc3 {[%emt 0:00:16]} Ng6 {[%emt 0:00:38]} 68. Kg4 {[%emt 0:00:24]} Nf4 {[%emt 0:00:22]} 69. h5 {[%emt 0:00:18]} Be7 {[%emt 0:00:31]} 70. h6 {[%emt 0:00:20]} Ng6 {[%emt 0:00:23]} 71. Nxb5 {[%emt 0:00:50]} e4 {[%emt 0:00:41]} 72. Nc3 {[%emt 0:00:28]} Ke5 {[%emt 0:00:29]} 73. b5 {[%emt 0:00:50]} Bc5 {[%emt 0:00:01]} 74. Na4 {[%emt 0:00:56]} Bd6 {[%emt 0:00:21]} 75. Nb6 {[%emt 0:00:35]} c3 {[%emt 0:00:29]} 76. Nc4+ {[%emt 0:00:33]} Kd5 {[%emt 0:00:09]} 77. Nxd6 {[%emt 0:00:11]} Kxd6 {[%emt 0:00:04]} 78. Kf5 {[%emt 0:00:06]} Nh4+ {[%emt 0:00:18]} 79. Kf6 {[%emt 0:00:22]} Ng2 {[%emt 0:00:23]} 80. h7 {[%emt 0:00:08]} 1-0

[Event "Magistral Ajedrez 2019"]
[Site "Zaragoza"]
[Date "2019.07.18"]
[Round "5.4"]
[White "Randazzo, Adrian"]
[Black "Dardha, Daniel"]
[Result "0-1"]
[ECO "A04"]
[WhiteElo "2227"]
[BlackElo "2420"]
[Annotator "NA"]
[PlyCount "137"]
[EventDate "2019.07.15"]
[EventType "swiss"]
[EventCountry "ESP"]
[SourceTitle "playchess.com"]
[Source "ChessBase"]
[SourceQuality "1"]
[TimeControl "5400+30"]

1. Nf3 {[%emt 0:00:00]} b6 {[%emt 0:00:39]} 2. e4 {[%emt 0:00:14]} Bb7 {[%emt 0:00:06]} 3. Nc3 {[%emt 0:00:46]} Nf6 {[%emt 0:09:15]} (3... e6 4. d4 Bb4 5. Bd3 Nf6 6. Qe2 d5 7. exd5 Qxd5 8. O-O Bxc3 9. bxc3 Nbd7 10. c4 Qh5 11. Bf4 Rc8 12. a4 a5 13. Rab1 O-O 14. Rb5 c5 15. dxc5 Rxc5 {0-1 (29) Eljanov,P (2734)-Carlsen,M (2827) Douglas 2017}) 4. e5 {[%emt 0:00:52]} Nd5 {[%emt 0:01:15]} 5. Nxd5 {[%emt 0:03:34]} Bxd5 {[%emt 0:00:10]} 6. d4 {[%emt 0:00:17] B00: Queen's Fianchetto Defence, Nimzowitsch Defence} e6 {[%emt 0:00:48]} 7. Bd3 {[%emt 0:02:53]} Be7 {[%emt 0:01:11]} 8. Qe2 {[%emt 0:01:27]} c5 {[%emt 0:05:17]} 9. c4 {[%emt 0:04:26]} Bc6 {[%emt 0:09:19]} 10. Bd2 $146 {[%emt 0:10:18]} ({Predecessor:} 10. O-O h6 11. b3 O-O 12. Bc2 f5 13. exf6 Bxf6 {1-0 (22) Tenyi,J (2204)-Kalo,I (1975) Hungary 2001}) 10... d5 {[%emt 0:07:21]} 11. exd6 {[%emt 0:06:35]} Qxd6 {[%emt 0:00:18]} 12. dxc5 {[%emt 0:02:04]} Qxc5 {[%emt 0:03:20]} 13. O-O {[%emt 0:33:22]} Nd7 {[%emt 0:01:03]} 14. Be3 {[%emt 0:03:58]} Qh5 {[%emt 0:00:47]} 15. Nd4 {[%emt 0:00:22]} Qxe2 {[%emt 0:00:12]} 16. Bxe2 {[%emt 0:00:11]} Bb7 {[%emt 0:01:14]} 17. Nb5 {[%emt 0:01:33]} O-O {[%emt 0:07:34]} 18. Rfd1 {[%emt 0:00:10]} Rfd8 {[%emt 0:01:02]} 19. Rd2 {[%emt 0:01:24]} a6 {[%emt 0:09:08]} 20. Rad1 {[%emt 0:03:53]} Nc5 {[%emt 0:00:17]} 21. Nc3 {[%emt 0:00:54]} Rxd2 {[%emt 0:04:13]} 22. Rxd2 {[%emt 0:00:08]} a5 {[%emt 0:06:33]} 23. b3 {[%emt 0:02:19]} Bc6 {[%emt 0:01:00]} 24. f3 {[%emt 0:03:38]} Kf8 {[%emt 0:01:51]} 25. Kf2 {[%emt 0:01:13]} Bh4+ {[%emt 0:01:41]} 26. g3 {[%emt 0:00:27]} Bf6 {[%emt 0:02:10]} 27. Rd6 {[%emt 0:02:18]} Rc8 {[%emt 0:03:05]} 28. Nb5 {[%emt 0:00:56]} Ke7 {[%emt 0:02:11]} 29. Rd2 {[%emt 0:02:02]} Bd7 {[%emt 0:10:02]} 30. Bf4 {[%emt 0:04:23]} Kf8 {[%emt 0:01:19]} 31. Bd6+ {[%emt 0:01:08]} Be7 {[%emt 0:00:07]} 32. Bf4 {[%emt 0:00:31]} g5 {[%emt 0:01:46]} 33. Be3 {[%emt 0:00:25]} Rd8 {[%emt 0:02:35]} 34. Rd1 {[%emt 0:00:30]} h6 {[%emt 0:00:59]} 35. h4 {[%emt 0:00:24]} f6 {[%emt 0:01:43]} 36. hxg5 {[%emt 0:00:10]} hxg5 {[%emt 0:00:04]} 37. g4 {[%emt 0:01:19]} Kg7 {[%emt 0:00:27]} 38. Nc3 {[%emt 0:00:35]} Rh8 {[%emt 0:00:53]} 39. Kg3 {[%emt 0:00:32]} Bc6 {[%emt 0:00:18]} 40. Bf1 {[%emt 0:01:44]} Kf7 {[%emt 0:01:08]} 41. Bg2 {[%emt 0:00:37]} f5 {[%emt 0:01:28]} 42. gxf5 {[%emt 0:02:28]} exf5 {[%emt 0:00:01]} 43. Kf2 {[%emt 0:01:13]} f4 {[%emt 0:01:02]} 44. Bd4 {[%emt 0:00:16]} Rd8 {[%emt 0:00:06]} 45. Bh3 {[%emt 0:00:51]} Bf6 {[%emt 0:03:12]} 46. Nd5 {[%emt 0:02:00]} Bxd4+ {[%emt 0:01:27]} 47. Rxd4 {[%emt 0:00:03]} Bxd5 {[%emt 0:00:05]} 48. cxd5 {[%emt 0:00:11]} Kf6 {[%emt 0:00:07]} 49. Rd2 {[%emt 0:01:22]} Rd6 {[%emt 0:00:56]} 50. Bf1 {[%emt 0:00:10] [#]} g4 $1 {[%emt 0:01:05]} 51. Bc4 {[%emt 0:00:22]} g3+ {[%emt 0:00:14]} 52. Kg1 $2 {[%emt 0:00:44]} (52. Kg2) 52... Nd7 {[%emt 0:00:37]} 53. Rd4 {[%emt 0:00:53]} Ke5 {[%emt 0:00:55]} 54. Re4+ {[%emt 0:00:07]} Kf5 {[%emt 0:00:04]} 55. Re8 {[%emt 0:00:47]} Ne5 {[%emt 0:01:04]} 56. Rf8+ {[%emt 0:00:45]} Rf6 {[%emt 0:00:38]} 57. Rh8 {[%emt 0:00:23]} Nxf3+ {[%emt 0:00:07]} 58. Kg2 {[%emt 0:00:01]} Ne5 {[%emt 0:00:38]} 59. Be2 {[%emt 0:01:36]} Ke4 {[%emt 0:00:21]} 60. Re8 {[%emt 0:00:37]} f3+ {[%emt 0:00:55]} 61. Bxf3+ {[%emt 0:00:05]} Rxf3 {[%emt 0:00:03]} 62. Rxe5+ {[%emt 0:01:00]} Kxe5 {[%emt 0:00:08]} 63. Kxf3 {[%emt 0:00:03]} Kxd5 {[%emt 0:00:08]} 64. Kxg3 {[%emt 0:00:01]} Kd4 {[%emt 0:00:40]} 65. Kf4 {[%emt 0:00:05]} Kc3 {[%emt 0:00:06]} 66. Ke4 {[%emt 0:01:28]} Kb2 {[%emt 0:00:05]} 67. Kd4 {[%emt 0:00:47]} Kxa2 {[%emt 0:00:07]} 68. Kc4 {[%emt 0:00:21]} Kb2 {[%emt 0:00:05]} 69. Kd4 0-1

[Event "Magistral Ajedrez 2019"]
[Site "Zaragoza"]
[Date "2019.07.18"]
[Round "6.3"]
[White "Kovacevic, Slobodan"]
[Black "Randazzo, Adrian"]
[Result "1/2-1/2"]
[ECO "A46"]
[WhiteElo "2257"]
[BlackElo "2227"]
[Annotator "NA"]
[PlyCount "38"]
[EventDate "2019.07.15"]
[EventType "swiss"]
[EventCountry "ESP"]
[SourceTitle "playchess.com"]
[Source "ChessBase"]
[SourceQuality "1"]
[TimeControl "5400+30"]

1. d4 {[%emt 0:00:43]} Nf6 {[%emt 0:00:00]} 2. Nf3 {[%emt 0:00:13]} e6 {[%emt 0:00:00]} 3. Bf4 {[%emt 0:00:15]} c5 {[%emt 0:02:03]} 4. e3 {[%emt 0:01:33]} b6 {[%emt 0:00:12]} 5. Nbd2 {[%emt 0:00:13]} Bb7 {[%emt 0:00:14]} 6. Nc4 {[%emt 0:00:33]} d5 {[%emt 0:07:18]} 7. Nce5 {[%emt 0:02:39]} Bd6 {[%emt 0:02:39]} 8. Bb5+ {[%emt 0:02:23]} Ke7 {[%emt 0:00:52]} 9. Ng5 {[%emt 0:01:45]} Rf8 {[%emt 0:06:29]} 10. Qf3 {[%emt 0:05:16]} a6 {[%emt 0:02:05]} 11. Qh3 {[%emt 0:23:04]} Bxe5 {[%emt 0:02:45]} 12. dxe5 {[%emt 0:02:42]} axb5 {[%emt 0:00:18]} 13. exf6+ {[%emt 0:01:52]} gxf6 {[%emt 0:00:09]} 14. Nf3 {[%emt 0:05:24]} Nd7 {[%emt 0:01:35]} 15. Qxh7 {[%emt 0:00:17]} Rh8 {[%emt 0:00:26]} 16. Qg7 {[%emt 0:01:04]} Rg8 {[%emt 0:00:13]} 17. Qh7 {[%emt 0:00:43]} Rh8 {[%emt 0:00:16]} 18. Qg7 {[%emt 0:00:06]} Rg8 {[%emt 0:00:04]} 19. Qh7 {[%emt 0:00:05]} Rh8 {[%emt 0:00:04]} 1/2-1/2

[Event "Magistral Ajedrez 2019"]
[Site "Zaragoza"]
[Date "2019.07.18"]
[Round "6.5"]
[White "Llorente Zaro, Alfonso"]
[Black "Gomez Anadon, Daniel"]
[Result "1/2-1/2"]
[ECO "C67"]
[WhiteElo "2445"]
[BlackElo "2305"]
[Annotator "NA"]
[PlyCount "64"]
[EventDate "2019.07.15"]
[EventType "swiss"]
[EventCountry "ESP"]
[SourceTitle "playchess.com"]
[Source "ChessBase"]
[SourceQuality "1"]
[TimeControl "5400+30"]

1. e4 {[%emt 0:02:14]} e5 {[%emt 0:00:00]} 2. Nf3 {[%emt 0:00:19]} Nc6 {[%emt 0:00:12]} 3. Bb5 {[%emt 0:00:29]} Nf6 {[%emt 0:00:43]} 4. O-O {[%emt 0:00:36]} Nxe4 {[%emt 0:00:32]} 5. Re1 {[%emt 0:00:37]} Nd6 {[%emt 0:00:20]} 6. Nxe5 {[%emt 0:00:16]} Be7 {[%emt 0:01:30]} 7. Bf1 {[%emt 0:00:46]} Nxe5 {[%emt 0:01:47]} 8. Rxe5 {[%emt 0:00:08]} O-O {[%emt 0:00:25]} 9. d4 {[%emt 0:00:18]} Bf6 {[%emt 0:00:38]} 10. Re1 {[%emt 0:00:14]} Nf5 {[%emt 0:00:47]} 11. c3 {[%emt 0:00:27]} d5 {[%emt 0:00:34]} 12. Bf4 {[%emt 0:01:10]} c6 {[%emt 0:01:06]} 13. Nd2 {[%emt 0:00:53]} Nh4 {[%emt 0:00:50]} 14. Bd3 {[%emt 0:01:27]} Bf5 {[%emt 0:01:13]} 15. Bxf5 {[%emt 0:00:20]} Nxf5 {[%emt 0:00:07]} 16. Nf3 {[%emt 0:00:10]} Qd7 {[%emt 0:00:50]} 17. Qd2 {[%emt 0:00:25]} Rfe8 {[%emt 0:00:40]} 18. Rxe8+ {[%emt 0:00:22]} Rxe8 {[%emt 0:00:12]} 19. Re1 {[%emt 0:00:09]} Rxe1+ {[%emt 0:00:31]} 20. Qxe1 {[%emt 0:00:11]} Qe7 {[%emt 0:00:35]} 21. Kf1 {[%emt 0:00:22]} Kf8 {[%emt 0:00:46]} 22. Qxe7+ {[%emt 0:00:20]} Kxe7 {[%emt 0:00:12]} 23. Ke2 {[%emt 0:00:08]} Nh4 {[%emt 0:01:02]} 24. Nxh4 {[%emt 0:01:01]} Bxh4 {[%emt 0:00:09]} 25. f3 {[%emt 0:00:09]} Ke6 {[%emt 0:00:48]} 26. h3 {[%emt 0:00:53]} g6 {[%emt 0:00:30]} 27. Kd3 {[%emt 0:00:30]} Be7 {[%emt 0:00:30]} 28. g4 {[%emt 0:00:30]} f5 {[%emt 0:03:39]} 29. Be3 {[%emt 0:03:12]} Bd6 {[%emt 0:00:36]} 30. Ke2 {[%emt 0:00:11]} a6 {[%emt 0:00:30]} 31. Kd3 {[%emt 0:00:50]} Bc7 {[%emt 0:00:36]} 32. Bd2 {[%emt 0:00:15]} Bd6 {Ke4 Ke5+} 1/2-1/2